bitfinex/quotes_SOLUSD_20250131
["timestamp","ask_amount","ask_price","bid_price","bid_amount"]
[1738346081938,0.4232,236.26,236.2,12.90701119]
[1738346082151,0.4232,236.26,236.18,12.90701119]
[1738346082448,1.27988306,236.26,236.17,12.90701119]
[1738346082760,2.33798306,236.26,236.15,12.93701119]
[1738346082960,0.12549,236.25,236.15,0.03]
[1738346083161,1.4815,236.23,236.15,0.03]
[1738346083359,0.79388385,236.22,236.15,0.03]
[1738346084961,0.4233,236.21,236.15,0.03]
[1738346087552,1.4816,236.22,236.15,0.03]
[1738346088273,1.4816,236.22,236.13,12.90701119]
[1738346090868,1.4816,236.22,236.14,12.90701119]
[1738346092756,0.79381368,236.21,236.11,12.90701119]
[1738346092976,0.79381368,236.21,236.1,12.90701119]
[1738346092977,6.80171368,236.21,236.1,12.90701119]
[1738346093359,6.80171368,236.21,236.09,12.90701119]
[1738346093559,6.80171368,236.21,236.08,12.90701119]
[1738346094977,1.73268,236.2,236.05,12.90701119]
[1738346095179,3.67405507,236.19,236.06,12.90701119]
[1738346095566,3.67405507,236.19,236.06,12.93701119]
[1738346096570,1.4819,236.18,236.06,12.93701119]
[1738346096770,0.794052,236.17,236.06,12.93701119]
[1738346097383,0.794052,236.17,236.07,12.90701119]
[1738346098581,0.4234,236.16,236.08,12.90701119]
[1738346099382,0.4234,236.16,236.1,12.90701119]
[1738346099582,0.4234,236.16,236.12,12.90701119]
[1738346100067,0.4234,236.16,236.11,12.90701119]
[1738346100672,1.4819,236.18,236.11,8.26692816]
[1738346100866,1.4819,236.18,236.08,8.26692816]
[1738346101082,0.79397829,236.17,236.07,8.26692816]
[1738346101280,0.79397829,236.17,236.06,8.29692816]
[1738346101685,0.79397829,236.17,236.07,8.26692816]
[1738346101986,0.4234,236.16,236.07,8.26692816]
[1738346102589,0.4234,236.16,236.07,12.92132065]
[1738346104586,0.4234,236.16,236.06,0.03]
[1738346104587,2.36191684,236.15,236.06,0.03]
[1738346104794,6.1557,236.14,236.06,0.03]
[1738346105092,0.12549,236.12,236.06,0.03]
[1738346105296,0.12549,236.1,236.06,0.03]
[1738346105473,0.79435747,236.09,236.06,0.03]
[1738346106276,1.5563,236.08,236.06,0.03]
[1738346106474,0.79439558,236.07,236.06,0.03]
[1738346106830,1.21799558,236.07,236.06,0.03]
[1738346107898,1.34348558,236.07,236.06,0.03]
[1738346108096,7.89938558,236.07,236.06,0.0001]
[1738346108274,8.02487558,236.07,236.06,0.0001]
[1738346110087,8.15036558,236.07,236.06,0.0001]
[1738346113988,7.77389558,236.07,236.06,0.0001]
[1738346114171,10.65389558,236.07,236.06,0.0001]
[1738346115573,0.4236,236.07,236.06,0.0001]
[1738346116790,1.34340148,236.07,236.06,0.0001]
[1738346117497,1.46889148,236.07,236.06,0.0001]
[1738346117985,0.12549,236.06,235.94,0.03]
[1738346118291,1.5621,236.03,235.94,0.03]
[1738346118496,0.7945743,236.02,235.94,0.03]
[1738346119198,1.4829,236.01,235.94,0.03]
[1738346119379,0.79458367,236.0,235.94,0.03]
[1738346120773,1.4829,236.01,235.94,0.03]
[1738346121181,1.0592,236.01,235.94,0.03]
[1738346121390,1.85375753,236.01,235.94,0.03]
[1738346122596,1.0592,236.01,235.94,0.03]
[1738346123289,1.4829,236.01,235.94,0.03]
[1738346124583,0.4237,236.0,235.94,0.03]
[1738346126079,1.483,236.0,235.94,0.03]
[1738346126591,1.483,236.0,235.94,12.95132065]
[1738346127488,0.4237,236.0,235.95,12.92132065]
[1738346127895,0.4237,236.0,235.96,12.92132065]
[1738346128982,1.4827,236.04,235.96,12.92132065]
[1738346130481,1.4827,236.04,235.97,12.92132065]
[1738346130682,0.4236,236.04,235.97,8.27664721]
[1738346130879,0.4236,236.04,236.0,8.27664721]
[1738346132697,0.4236,236.04,236.0,12.92899619]
[1738346133992,0.4236,236.04,235.99,12.92899619]
[1738346134191,0.4236,236.04,235.94,4.2682]
[1738346134192,0.4236,236.04,235.98,12.92899619]
[1738346134587,0.4236,236.04,236.0,12.92899619]
[1738346134797,0.4236,236.04,236.01,12.92899619]
[1738346135117,0.4866,236.04,236.02,12.92899619]
[1738346135287,0.4866,236.04,236.01,12.92899619]
[1738346138596,0.4866,236.04,236.0,12.95899619]
[1738346138896,0.063,236.04,236.03,12.92899619]
[1738346139988,0.063,236.04,236.02,12.92899619]
[1738346140197,0.063,236.04,236.01,12.92899619]
[1738346140508,0.4866,236.04,236.0,0.03]
[1738346142090,0.79450125,236.03,236.0,0.03]
[1738346142995,0.79450125,236.03,236.0,0.0001]
[1738346143899,0.4236,236.02,236.0,0.0001]
[1738346144104,0.7946264,236.01,236.0,0.0001]
[1738346145608,0.4236,236.02,236.0,0.0001]
[1738346145922,0.7946293,236.01,236.0,0.0001]
[1738346148917,1.2183293,236.01,236.0,0.0001]
[1738346149119,1.2183293,236.01,235.9,12.01909619]
[1738346149120,1.4829,236.01,235.9,12.01909619]
[1738346149296,3.67462512,236.0,235.9,12.01909619]
[1738346150516,3.67462512,236.0,235.89,12.92899619]
[1738346150696,3.67462512,236.0,235.88,12.92899619]
[1738346151413,1.483,235.99,235.88,12.92899619]
[1738346151618,0.79468741,235.98,235.88,12.92899619]
[1738346151913,0.79468741,235.98,235.87,14.44249619]
[1738346152622,0.79468741,235.98,235.87,9.7970763]
[1738346153531,1.4831,235.97,235.88,8.2835763]
[1738346153699,2.27778641,235.97,235.88,8.2835763]
[1738346154116,2.27778641,235.97,235.87,9.7970763]
[1738346154724,1.0594,235.97,235.87,9.7970763]
[1738346155027,1.85411279,235.97,235.87,9.7970763]
[1738346155918,1.4831,235.97,235.88,8.2835763]
[1738346157129,1.0594,235.97,235.88,8.2835763]
[1738346157516,1.85409656,235.97,235.88,8.2835763]
[1738346158322,2.27779656,235.97,235.88,8.2835763]
[1738346158623,0.79471793,235.96,235.86,8.2835763]
[1738346159225,0.4238,235.95,235.86,8.2835763]
[1738346161231,0.4238,235.95,235.87,8.2835763]
[1738346162434,0.79475048,235.94,235.86,0.03]
[1738346163431,7.01665255,235.95,235.87,8.2835763]
[1738346163725,1.4833,235.96,235.89,8.2835763]
[1738346163907,1.4833,235.96,235.9,8.2835763]
[1738346164305,0.4238,235.96,235.9,8.2835763]
[1738346164519,0.4238,235.96,235.86,0.03]
[1738346164520,0.4238,235.96,235.92,8.2835763]
[1738346165116,7.4761,236.0,235.93,8.2835763]
[1738346165307,0.4237,235.99,235.95,8.2835763]
[1738346165706,0.4237,235.99,235.92,8.2835763]
[1738346166313,1.483,236.0,235.92,8.2835763]
[1738346167224,0.79457413,235.99,235.88,8.2835763]
[1738346167425,0.79457413,235.99,235.86,8.3135763]
[1738346167624,1.5309,235.96,235.86,0.03]
[1738346167816,0.79483305,235.95,235.86,0.03]
[1738346169313,1.4833,235.94,235.86,0.03]
[1738346169509,0.4238,235.94,235.88,8.2835763]
[1738346169813,0.4238,235.94,235.9,8.2835763]
[1738346170124,2.88,235.99,235.91,8.2835763]
[1738346170305,0.4237,235.98,235.91,8.2835763]
[1738346170507,0.4237,235.98,235.94,12.93519286]
[1738346171331,0.4237,235.98,235.93,12.93519286]
[1738346171533,0.4237,235.98,235.92,12.93519286]
[1738346172310,1.4831,235.98,235.88,12.93519286]
[1738346173437,1.5461,235.98,235.88,12.93519286]
[1738346174347,1.5461,235.98,235.89,12.93519286]
[1738346176513,2.34074535,235.98,235.87,12.93519286]
[1738346176714,2.34074535,235.98,235.86,0.03]
[1738346178330,2.34074535,235.98,235.86,12.96519286]
[1738346178633,2.34074535,235.98,235.87,12.93519286]
[1738346178837,1.5461,235.98,235.91,12.93519286]
[1738346179042,1.5461,235.98,235.92,12.93519286]
[1738346179529,0.4867,235.98,235.91,12.93519286]
[1738346180738,0.4867,235.98,235.89,12.93519286]
[1738346181522,0.4867,235.98,235.87,4.2395]
[1738346181523,0.4867,235.98,235.9,12.93519286]
[1738346183441,0.4867,235.98,235.91,12.93519286]
[1738346183745,0.4867,235.98,235.94,12.93519286]
[1738346183936,0.4867,235.98,235.95,12.93519286]
[1738346185012,0.4867,235.98,235.96,12.93519286]
[1738346185235,0.063,235.98,235.96,12.93519286]
[1738346185435,0.063,235.98,235.95,12.93519286]
[1738346185819,0.4867,235.98,235.92,12.93519286]
[1738346186543,0.4867,235.98,235.93,12.93519286]
[1738346186912,0.4867,235.98,235.9,12.93519286]
[1738346188541,0.4867,235.98,235.91,12.93519286]
[1738346190515,0.4867,235.98,235.91,8.28057376]
[1738346191040,0.4867,235.98,235.9,8.28057376]
[1738346192444,0.4867,235.98,235.91,8.28057376]
[1738346193143,0.4867,235.98,235.92,8.28057376]
[1738346193841,0.063,235.98,235.96,8.28057376]
[1738346194139,0.063,235.98,235.9,4.239]
[1738346194140,0.063,235.98,235.97,8.28057376]
[1738346198840,0.063,235.98,235.96,8.28057376]
[1738346201449,0.4867,235.98,235.93,8.28057376]
[1738346202033,0.063,235.98,235.94,8.28057376]
[1738346203055,0.4867,235.98,235.94,8.28057376]
[1738346203237,0.4867,235.98,235.92,8.28057376]
[1738346206655,0.4867,235.98,235.94,8.28057376]
[1738346207646,0.4867,235.98,235.93,8.28057376]
[1738346208553,0.4867,235.98,235.91,8.28057376]
[1738346208736,0.4867,235.98,235.9,0.03]
[1738346209254,0.79462404,235.97,235.9,0.03]
[1738346209942,0.4238,235.96,235.9,0.03]
[1738346211955,0.4237,235.97,235.9,0.03]
[1738346212357,0.4237,235.97,235.92,8.28057376]
[1738346212935,0.4237,235.97,235.91,8.28057376]
[1738346213130,0.4237,235.97,235.9,8.31057376]
[1738346214459,2.27775318,235.97,235.9,0.03]
[1738346216148,1.4831,235.97,235.9,0.03]
[1738346220543,0.4238,235.95,235.89,7.81057376]
[1738346220943,0.4238,235.95,235.88,8.28057376]
[1738346221444,0.4238,235.95,235.9,0.03]
[1738346223262,0.4238,235.95,235.91,8.28057376]
[1738346223454,0.4238,235.95,235.9,8.31057376]
[1738346223644,0.4238,235.95,235.9,0.03]
[1738346224164,0.4238,235.95,235.9,8.31057376]
[1738346224357,0.18849,235.98,235.9,8.31057376]
[1738346224565,0.4237,235.97,235.9,8.31057376]
[1738346225845,0.12549,235.96,235.9,0.03]
[1738346226252,0.12549,235.94,235.9,0.03]
[1738346227156,7.9537,235.91,235.9,0.0001]
[1738346227355,8.87405934,235.91,235.9,0.0001]
[1738346227562,9.29785934,235.91,235.9,0.0001]
[1738346227862,8.50299,235.91,235.9,0.0001]
[1738346229444,8.3775,235.91,235.9,0.0001]
[1738346231257,2.0177,235.91,235.9,0.0001]
[1738346233069,2.26868,235.91,235.9,0.0001]
[1738346240571,3.06371796,235.91,235.9,0.0001]
[1738346242276,9.02583796,235.91,235.88,0.0001]
[1738346242878,10.08553796,235.91,235.86,0.0001]
[1738346243067,11.08553796,235.91,235.86,0.0001]
[1738346243266,4.66809424,235.9,235.86,0.0001]
[1738346243578,0.79522385,235.89,235.86,0.0001]
[1738346243777,2.86543925,235.89,235.86,0.0001]
[1738346243982,7.53353349,235.89,235.86,0.0001]
[1738346244283,6.46331809,235.89,235.86,0.0001]
[1738346244456,0.4239,235.88,235.86,0.0001]
[1738346244661,0.79524369,235.87,235.86,0.0001]
[1738346244978,3.34344369,235.87,235.86,0.0001]
[1738346245183,3.34344369,235.87,235.76,0.03]
[1738346245184,6.5678,235.84,235.76,0.03]
[1738346245365,3.67537877,235.83,235.76,0.03]
[1738346245981,0.25098,235.82,235.76,0.03]
[1738346246159,0.12549,235.8,235.76,0.03]
[1738346246360,0.79537764,235.79,235.76,0.03]
[1738346246561,0.12549,235.77,235.76,0.03]
[1738346246760,0.92086895,235.77,235.76,0.03]
[1738346248565,1.34496895,235.77,235.76,0.03]
[1738346248787,0.54959,235.77,235.76,0.03]
[1738346249580,0.67508,235.77,235.76,0.03]
[1738346249769,0.12549,235.76,235.63,8.28057376]
[1738346250080,0.795599,235.75,235.64,8.28057376]
[1738346250286,0.25098,235.74,235.64,8.28057376]
[1738346250585,0.25098,235.71,235.64,8.28057376]
[1738346250767,0.25098,235.69,235.62,8.28057376]
[1738346250957,0.12549,235.67,235.57,4.2448]
[1738346251159,1.4847,235.72,235.64,8.28057376]
[1738346251160,0.79566491,235.71,235.64,8.28057376]
[1738346252284,0.37647,235.7,235.63,8.28057376]
[1738346252788,1.21983949,235.69,235.63,8.28057376]
[1738346253783,0.4242,235.69,235.63,8.28057376]
[1738346253982,0.79564004,235.7,235.65,8.28057376]
[1738346254169,0.4242,235.71,235.66,8.28057376]
[1738346254876,0.4241,235.74,235.66,8.28057376]
[1738346255082,1.21964562,235.74,235.67,8.28057376]
[1738346255387,1.21964562,235.74,235.68,8.28057376]
[1738346255583,0.12549,235.73,235.68,8.28057376]
[1738346256691,0.4242,235.72,235.67,8.28057376]
[1738346256873,0.12549,235.71,235.66,8.28057376]
[1738346257274,0.12549,235.71,235.65,8.28057376]
[1738346257676,0.92106325,235.71,235.64,8.28057376]
[1738346257878,0.92106325,235.71,235.65,8.28057376]
[1738346258572,0.4242,235.7,235.66,8.28057376]
[1738346259294,0.4242,235.7,235.65,8.28057376]
[1738346259474,0.4242,235.7,235.64,8.28057376]
[1738346260592,0.79561319,235.69,235.63,8.31057376]
[1738346261394,0.4243,235.68,235.63,8.31057376]
[1738346263296,0.4242,235.7,235.63,8.31057376]
[1738346263496,0.79564224,235.69,235.63,8.31057376]
[1738346264613,0.12549,235.71,235.63,8.31057376]
[1738346264898,0.12549,235.69,235.63,8.31057376]
[1738346265479,0.12549,235.69,235.63,0.03]
[1738346266582,0.12549,235.69,235.63,8.31057376]
[1738346266982,0.4243,235.68,235.63,8.31057376]
[1738346267382,0.4243,235.68,235.63,0.03]
[1738346268499,0.92111012,235.7,235.63,0.03]
[1738346268683,0.4242,235.69,235.63,0.03]
[1738346268888,0.79568047,235.68,235.63,0.03]
[1738346269202,0.4242,235.69,235.63,0.03]
[1738346269905,0.7956427,235.68,235.63,0.03]
[1738346270213,1.34034823,235.7,235.63,0.03]
[1738346270684,2.40094823,235.7,235.63,0.03]
[1738346283134,1.21485823,235.7,235.63,0.03]
[1738346283312,3.3042,235.7,235.63,0.03]
[1738346283514,0.79568478,235.69,235.63,0.03]
[1738346285530,1.485,235.68,235.63,0.03]
[1738346285703,0.79584224,235.67,235.63,0.03]
[1738346286230,0.12549,235.66,235.63,0.03]
[1738346286414,0.12549,235.64,235.63,0.03]
[1738346287235,0.54979,235.64,235.63,0.03]
[1738346288227,0.54979,235.64,235.63,0.0001]
[1738346297440,3.42979,235.64,235.63,0.0001]
[1738346301546,3.3043,235.64,235.63,0.0001]
[1738346302544,0.85873159,235.76,235.63,8.28067376]
[1738346302846,0.4241,235.75,235.67,8.28057376]
[1738346303042,0.12549,235.74,235.67,8.28057376]
[1738346303424,0.12549,235.74,235.65,8.28057376]
[1738346303631,0.92095848,235.74,235.64,16.10007376]
[1738346304348,0.12549,235.74,235.65,8.28057376]
[1738346304541,0.12549,235.74,235.66,8.28057376]
[1738346304854,0.4242,235.73,235.66,8.28057376]
[1738346306053,0.4241,235.74,235.67,8.28057376]
[1738346306252,0.4241,235.74,235.68,8.28057376]
[1738346306642,0.063,235.76,235.69,8.28057376]
[1738346306858,0.063,235.76,235.7,8.28057376]
[1738346308139,0.063,235.76,235.7,12.52317376]
[1738346308568,0.063,235.73,235.7,12.52317376]
[1738346309556,0.063,235.73,235.7,8.28057376]
[1738346310656,0.063,235.73,235.71,8.28057376]
[1738346311562,0.063,235.73,235.7,8.28057376]
[1738346312759,0.063,235.73,235.71,8.28057376]
[1738346313146,0.063,235.73,235.72,8.28057376]
[1738346313340,0.063,235.73,235.71,8.28057376]
[1738346313541,0.063,235.73,235.7,8.28057376]
[1738346314447,0.063,235.73,235.71,8.28057376]
[1738346316364,0.063,235.73,235.7,8.28057376]
[1738346317265,0.063,235.73,235.69,8.28057376]
[1738346317446,0.4872,235.73,235.66,8.28057376]
[1738346317765,0.4872,235.73,235.67,8.28057376]
[1738346318058,0.4872,235.73,235.68,8.28057376]
[1738346318559,0.063,235.73,235.7,8.28057376]
[1738346320562,0.4872,235.73,235.69,8.28057376]
[1738346320754,0.4872,235.73,235.67,8.28057376]
[1738346321762,0.4872,235.73,235.66,8.28057376]
[1738346323060,0.4872,235.73,235.65,8.28057376]
[1738346324079,0.4872,235.73,235.64,8.28057376]
[1738346326649,1.5477,235.73,235.63,0.0001]
[1738346326855,0.7955918,235.72,235.63,0.0001]
[1738346327881,1.4848,235.71,235.63,0.0001]
[1738346328185,0.79562556,235.7,235.63,0.0001]
[1738346329480,1.4848,235.71,235.63,8.28067376]
[1738346329959,1.0606,235.71,235.63,0.0001]
[1738346330284,0.12549,235.7,235.63,0.0001]
[1738346331177,0.4242,235.69,235.63,8.28067376]
[1738346331586,0.4242,235.69,235.63,0.0001]
[1738346332458,0.12549,235.68,235.63,0.0001]
[1738346333180,3.3043,235.67,235.63,0.0001]
[1738346345872,3.3673,235.67,235.63,0.0001]
[1738346346391,3.3673,235.67,235.6,8.28057376]
[1738346346982,3.3673,235.67,235.59,8.28057376]
[1738346347186,3.3673,235.67,235.58,8.28057376]
[1738346348085,0.79565126,235.66,235.58,8.28057376]
[1738346348290,0.79565126,235.66,235.57,8.28057376]
[1738346349995,0.12549,235.65,235.57,8.28057376]
[1738346350498,0.4243,235.64,235.57,8.28057376]
[1738346358112,0.4243,235.64,235.57,8.31057376]
[1738346359218,0.4243,235.64,235.57,0.03]
[1738346359389,0.79574558,235.63,235.57,0.03]
[1738346360393,1.4851,235.65,235.57,0.03]
[1738346360598,7.6158,235.63,235.57,0.03]
[1738346360795,0.79595285,235.62,235.57,0.03]
[1738346362616,1.4854,235.61,235.57,0.03]
[1738346362796,0.79597595,235.6,235.57,0.03]
[1738346362995,0.12549,235.59,235.57,0.03]
[1738346364414,0.4244,235.58,235.57,0.03]
[1738346364712,0.54989,235.58,235.57,0.03]
[1738346365716,0.67538,235.58,235.57,0.03]
[1738346369015,1.74379,235.57,235.55,9.972e-05]
[1738346369311,0.79610469,235.56,235.55,9.972e-05]
[1738346369720,0.92159469,235.56,235.55,9.972e-05]
[1738346370319,1.34609469,235.56,235.55,9.972e-05]
[1738346370687,1.47158469,235.56,235.55,9.972e-05]
[1738346371219,0.67548,235.56,235.55,9.972e-05]
[1738346371896,1.4715233,235.56,235.55,9.972e-05]
[1738346372095,0.67548,235.56,235.55,9.972e-05]
[1738346372408,0.67548,235.56,235.55,0.03009972]
[1738346373113,1.47154931,235.56,235.55,0.03009972]
[1738346373692,1.34605931,235.56,235.55,0.03009972]
[1738346375906,1.22056931,235.56,235.55,0.03009972]
[1738346376223,0.4245,235.56,235.55,0.03009972]
[1738346376533,1.22053562,235.56,235.55,0.03009972]
[1738346376817,0.4245,235.56,235.55,0.03009972]
[1738346377917,1.22057985,235.56,235.55,0.03009972]
[1738346378219,0.4245,235.56,235.55,0.03009972]
[1738346378515,1.22057378,235.56,235.55,0.03009972]
[1738346379119,0.4245,235.56,235.55,0.03009972]
[1738346382044,0.4244,235.59,235.55,0.03009972]
[1738346383320,0.4244,235.6,235.55,0.03009972]
[1738346383520,1.22028798,235.6,235.55,0.03009972]
[1738346384026,0.12549,235.59,235.55,0.03009972]
[1738346384321,0.79601541,235.58,235.55,0.03009972]
[1738346385331,0.9214808,235.57,235.55,0.03009972]
[1738346386006,0.063,235.56,235.55,0.03009972]
[1738346386634,0.063,235.56,235.55,9.972e-05]
[1738346388222,0.4875,235.56,235.55,9.972e-05]
[1738346388446,1.28360995,235.56,235.55,9.972e-05]
[1738346388629,0.4875,235.56,235.55,9.972e-05]
[1738346390336,0.61299,235.56,235.55,9.972e-05]
[1738346396240,2.1204,235.56,235.42,1.6355]
[1738346396437,6.10045065,235.56,235.42,1.6355]
[1738346398018,0.12549,235.55,235.42,1.6355]
[1738346398243,2.28203234,235.54,235.42,1.6355]
[1738346401136,2.28203234,235.54,235.42,9.91607376]
[1738346401337,2.28203234,235.54,235.44,8.28057376]
[1738346401539,2.28203234,235.54,235.43,8.28057376]
[1738346401738,2.28203234,235.54,235.42,9.91607376]
[1738346402753,1.4858,235.54,235.43,8.28057376]
[1738346403050,2.88,235.53,235.43,8.28057376]
[1738346403222,2.88,235.53,235.42,9.91607376]
[1738346403853,2.88,235.53,235.43,8.28057376]
[1738346404850,0.4245,235.52,235.42,1.6355]
[1738346405039,1.4859,235.52,235.42,1.6355]
[1738346405557,1.04718413,235.51,235.38,8.28057376]
[1738346406931,1.04718413,235.51,235.37,15.93197376]
[1738346407155,7.06768413,235.51,235.37,9.79937376]
[1738346407354,7.06768413,235.51,235.37,1.5188]
[1738346407562,7.06768413,235.51,235.34,8.28057376]
[1738346407756,7.06768413,235.51,235.33,8.28057376]
[1738346408050,7.06768413,235.51,235.34,8.28057376]
[1738346408345,7.06768413,235.51,235.31,9.85297376]
[1738346408850,7.06768413,235.51,235.32,8.28057376]
[1738346409348,12.92512734,235.51,235.37,1.0]
[1738346410632,12.92512734,235.51,235.37,1.03]
[1738346410826,12.92512734,235.51,235.37,0.03]
[1738346410827,8.06768413,235.51,235.37,0.03]
[1738346411043,11.14563461,235.51,235.37,0.03]
[1738346411453,11.14563461,235.51,235.35,1.0]
[1738346412149,5.12513461,235.51,235.32,1.0]
[1738346412842,5.12513461,235.51,235.33,1.0]
[1738346413850,1.04718413,235.51,235.37,1.0]
[1738346414050,1.04718413,235.51,235.35,1.0]
[1738346414356,1.04718413,235.51,235.33,2.0]
[1738346415046,1.04718413,235.51,235.33,1.0]
[1738346415047,6.1522,235.5,235.33,1.0]
[1738346415256,6.0948,235.47,235.29,1.0]
[1738346415451,6.0948,235.47,235.27,1.0]
[1738346415452,0.79686891,235.46,235.31,1.0]
[1738346416029,0.12549,235.45,235.31,1.0]
[1738346416259,6.0948,235.47,235.27,2.0]
[1738346416260,0.79686433,235.44,235.27,2.0]
[1738346416459,0.12549,235.42,235.29,2.0]
[1738346416637,0.79686242,235.41,235.29,2.0]
[1738346416843,2.88,235.4,235.31,1.0]
[1738346417035,0.79682609,235.39,235.31,1.0]
[1738346417241,0.55029,235.38,235.31,1.0]
[1738346417436,0.79683416,235.37,235.31,1.0]
[1738346417643,0.79683416,235.37,235.33,1.0]
[1738346417933,0.12549,235.36,235.33,1.0]
[1738346418133,0.7968005,235.35,235.33,1.0]
[1738346418833,3.3049,235.34,235.33,1.0]
[1738346419230,3.3049,235.34,235.31,2.0]
[1738346419541,3.3049,235.34,235.33,1.0]
[1738346419742,2.88,235.34,235.33,1.0]
[1738346419931,0.55029,235.36,235.33,1.0]
[1738346420126,2.88,235.35,235.33,1.0]
[1738346421062,3.3049,235.35,235.33,1.0]
[1738346423735,0.4249,235.35,235.33,1.0]
[1738346423936,1.22171656,235.35,235.33,1.0]
[1738346425763,1.22171656,235.35,235.3,1.0]
[1738346426344,2.28391656,235.35,235.3,1.0]
[1738346426560,0.12549,235.34,235.28,1.0]
[1738346426750,0.79696083,235.33,235.28,1.0]
[1738346427665,0.79694779,235.32,235.28,1.0]
[1738346430165,0.4249,235.31,235.28,1.0]
[1738346430660,0.79694846,235.3,235.28,1.0]
[1738346431863,0.425,235.29,235.25,2.0]
[1738346432062,1.22200685,235.29,235.25,2.0]
[1738346432371,0.425,235.29,235.25,2.0]
[1738346433271,0.55039,235.31,235.25,2.0]
[1738346433572,0.79701356,235.3,235.25,2.0]
[1738346433879,0.79701356,235.3,235.27,1.0]
[1738346434869,0.79701356,235.3,235.25,2.0]
[1738346435575,0.79701356,235.3,235.27,1.0]
[1738346435576,3.305,235.29,235.27,1.0]
[1738346436077,3.305,235.29,235.25,1.0]
[1738346436078,0.79700483,235.28,235.25,1.0]
[1738346436378,0.79700483,235.28,235.23,1.0]
[1738346436379,0.79705272,235.32,235.3,2.0]
[1738346436548,2.88,235.35,235.3,2.0]
[1738346436748,0.79684832,235.34,235.28,2.0]
[1738346436952,0.25098,235.33,235.26,1.0]
[1738346437281,0.25098,235.33,235.27,1.0]
[1738346437282,0.79697086,235.32,235.27,1.0]
[1738346437482,0.4249,235.31,235.27,1.0]
[1738346437668,0.79697074,235.3,235.27,1.0]
[1738346440077,0.425,235.29,235.26,1.0]
[1738346440276,0.79700178,235.28,235.25,1.03]
[1738346442057,0.425,235.27,235.25,1.03]
[1738346442257,1.2220572,235.27,235.25,1.03]
[1738346443181,1.0625,235.29,235.25,1.03]
[1738346443385,0.79706096,235.28,235.25,1.03]
[1738346443553,0.79706096,235.28,235.27,1.0]
[1738346443885,2.88,235.28,235.27,1.0]
[1738346444058,1.22185318,235.32,235.27,1.0]
[1738346444255,2.88,235.31,235.29,1.0]
[1738346444979,2.28415318,235.32,235.29,1.0]
[1738346445170,0.4249,235.32,235.31,2.0]
[1738346445372,1.859153,235.36,235.31,2.0]
[1738346445678,2.88,235.34,235.33,1.0]
[1738346445883,0.4248,235.35,235.33,1.0]
[1738346446075,2.88,235.34,235.33,1.0]
[1738346446873,3.3049,235.34,235.33,1.0]
[1738346447270,3.3049,235.34,235.31,1.0]
[1738346447476,0.79685542,235.33,235.31,1.0]
[1738346449095,0.4249,235.32,235.31,1.0]
[1738346449387,0.4249,235.32,235.25,0.03]
[1738346449388,0.4249,235.32,235.29,1.0]
[1738346449561,0.79691075,235.31,235.29,1.0]
[1738346450190,0.79691075,235.31,235.29,1.03]
[1738346450665,0.4249,235.3,235.29,1.03]
[1738346451683,0.4249,235.31,235.29,1.03]
[1738346457286,0.4249,235.31,235.3,9.28057376]
[1738346457885,0.4248,235.36,235.32,1.0]
[1738346458083,2.88,235.35,235.33,1.0]
[1738346458296,2.88,235.34,235.33,1.0]
[1738346458976,3.3049,235.34,235.33,1.0]
[1738346459561,0.4248,235.36,235.35,2.0]
[1738346459892,2.88,235.38,235.37,1.0]
[1738346460195,3.3048,235.38,235.37,10.28057376]
[1738346460490,2.88,235.4,235.39,2.0]
[1738346461386,3.3048,235.4,235.39,2.0]
[1738346461585,3.3048,235.4,235.39,1.0]
[1738346461796,3.3048,235.4,235.37,1.0]
[1738346462103,0.79665042,235.39,235.35,1.0]
[1738346463267,0.79665042,235.39,235.32,1.0]
[1738346463268,1.61239,235.38,235.32,1.0]
[1738346463479,0.7968247,235.37,235.32,1.0]
[1738346465585,1.487,235.36,235.32,1.0]